[Event "Early-Titled-Tuesday-Blitz-January-16-2024"]
[Site "Chess.com"]
[Date "2024.01.16"]
[Round "4"]
[White "Fandorine"]
[Black "Vladimir_Zakhartsov"]
[Result "1-0"]
[WhiteElo "3002"]
[BlackElo "2851"]
[TimeControl "180+1"]
[EndTime "8:41:00 PST"]
[Termination "Fandorine won by resignation"]

1. c4 {[%clk 0:03:00.9]} 1... e6 {[%clk 0:02:54.8]} 2. g3 {[%clk 0:02:59.4]}
2... d5 {[%clk 0:02:55]} 3. Bg2 {[%clk 0:03:00.2]} 3... Nf6 {[%clk 0:02:55.4]}
4. Nf3 {[%clk 0:03:00.9]} 4... dxc4 {[%clk 0:02:46.1]} 5. Qa4+ {[%clk
0:02:58.7]} 5... Nbd7 {[%clk 0:02:45.9]} 6. Qxc4 {[%clk 0:02:59.3]} 6... a6
{[%clk 0:02:46.5]} 7. Qc2 {[%clk 0:02:56.2]} 7... c5 {[%clk 0:02:40.3]} 8. Nc3
{[%clk 0:02:54.9]} 8... Rb8 {[%clk 0:02:38.7]} 9. d4 {[%clk 0:02:47.6]} 9...
cxd4 {[%clk 0:02:34.1]} 10. Nxd4 {[%clk 0:02:47.5]} 10... Bc5 {[%clk 0:02:30.7]}
11. Nb3 {[%clk 0:02:40.9]} 11... Bd6 {[%clk 0:02:21.8]} 12. O-O {[%clk
0:02:39.3]} 12... O-O {[%clk 0:02:21.6]} 13. Rd1 {[%clk 0:02:37.2]} 13... Qe7
{[%clk 0:02:21.6]} 14. Be3 {[%clk 0:02:22.9]} 14... b6 {[%clk 0:02:08.9]} 15.
Nd4 {[%clk 0:02:19.4]} 15... Ne5 {[%clk 0:01:53]} 16. Bg5 {[%clk 0:02:17.7]}
16... h6 {[%clk 0:01:01.5]} 17. Bxf6 {[%clk 0:02:02.7]} 17... Qxf6 {[%clk
0:01:02.4]} 18. Ne4 {[%clk 0:01:59.9]} 18... Qe7 {[%clk 0:01:02.8]} 19. f4
{[%clk 0:01:12.4]} 19... Bb7 {[%clk 0:00:59.4]} 20. Nxd6 {[%clk 0:01:01.9]}
20... Bxg2 {[%clk 0:00:41.9]} 21. Kxg2 {[%clk 0:00:43.5]} 21... Ng4 {[%clk
0:00:35.8]} 22. Nc6 {[%clk 0:00:43.7]} 22... Qc7 {[%clk 0:00:17.9]} 23. Qe4
{[%clk 0:00:34.7]} 23... Nf6 {[%clk 0:00:08.5]} 24. Qf3 {[%clk 0:00:34]} 24...
Ra8 {[%clk 0:00:08.8]} 25. Rac1 {[%clk 0:00:30.4]} 25... b5 {[%clk 0:00:09.3]}
26. e4 {[%clk 0:00:28.2]} 26... Qb6 {[%clk 0:00:08.7]} 27. Ne7+ {[%clk
0:00:23.4]} 27... Kh7 {[%clk 0:00:07]} 28. e5 {[%clk 0:00:24.1]} 28... Nd7
{[%clk 0:00:05]} 29. Ndc8 {[%clk 0:00:22.4]} 29... Qd8 {[%clk 0:00:04.3]} 30.
Qxa8 {[%clk 0:00:22.1]} 1-0

[Event "Early-Titled-Tuesday-Blitz-January-16-2024"]
[Site "Chess.com"]
[Date "2024.01.16"]
[Round "4"]
[White "SahibSinghKnight"]
[Black "Practical-Play"]
[Result "1-0"]
[WhiteElo "2688"]
[BlackElo "2508"]
[TimeControl "180+1"]
[EndTime "8:41:00 PST"]
[Termination "SahibSinghKnight won by resignation"]

1. e4 {[%clk 0:03:00.9]} 1... d5 {[%clk 0:02:58.6]} 2. exd5 {[%clk 0:02:58.1]}
2... Nf6 {[%clk 0:02:58.4]} 3. Nf3 {[%clk 0:02:57]} 3... Qxd5 {[%clk 0:02:56.1]}
4. Nc3 {[%clk 0:02:56.5]} 4... Qd6 {[%clk 0:02:56.1]} 5. d4 {[%clk 0:02:56.5]}
5... g6 {[%clk 0:02:56.2]} 6. g3 {[%clk 0:02:56.6]} 6... Bg7 {[%clk 0:02:56.1]}
7. Bg2 {[%clk 0:02:56.8]} 7... O-O {[%clk 0:02:56.2]} 8. O-O {[%clk 0:02:56.3]}
8... Nc6 {[%clk 0:02:49.4]} 9. Bf4 {[%clk 0:02:54.6]} 9... Qd7 {[%clk
0:02:47.7]} 10. d5 {[%clk 0:02:45.7]} 10... Nb4 {[%clk 0:02:46.2]} 11. Ne5
{[%clk 0:02:45.9]} 11... Qd8 {[%clk 0:02:44.6]} 12. a3 {[%clk 0:02:44.5]} 12...
Na6 {[%clk 0:02:41]} 13. Re1 {[%clk 0:02:44.6]} 13... Nc5 {[%clk 0:02:29.3]} 14.
Qd2 {[%clk 0:02:23.1]} 14... Ncd7 {[%clk 0:02:23.4]} 15. Nb5 {[%clk 0:02:21]}
15... a6 {[%clk 0:02:01.9]} 16. Nxf7 {[%clk 0:01:47.7]} 16... Rxf7 {[%clk
0:01:55.5]} 17. Nxc7 {[%clk 0:01:47.7]} 17... Nh5 {[%clk 0:01:37.2]} 18. Nxa8
{[%clk 0:01:34.8]} 18... Nxf4 {[%clk 0:01:36.4]} 19. gxf4 {[%clk 0:01:35.7]}
19... Bh6 {[%clk 0:01:22]} 20. d6 {[%clk 0:01:32.5]} 20... exd6 {[%clk
0:01:18.3]} 21. Bd5 {[%clk 0:01:30.3]} 21... Nf6 {[%clk 0:01:13.6]} 22. Bxf7+
{[%clk 0:01:29.2]} 22... Kxf7 {[%clk 0:01:14.5]} 23. Qc3 {[%clk 0:01:23]} 23...
Ne8 {[%clk 0:00:37.7]} 24. Nb6 {[%clk 0:01:13.4]} 24... Be6 {[%clk 0:00:22]} 25.
Qe3 {[%clk 0:00:51.7]} 25... Qf6 {[%clk 0:00:12.4]} 26. Nd5 {[%clk 0:00:51.2]}
26... Bxd5 {[%clk 0:00:05.8]} 27. Qxe8+ {[%clk 0:00:50.5]} 27... Kg7 {[%clk
0:00:06.2]} 28. Qe7+ {[%clk 0:00:48.5]} 28... Bf7 {[%clk 0:00:06.3]} 29. Qxf6+
{[%clk 0:00:48.3]} 29... Kxf6 {[%clk 0:00:07.2]} 30. Re4 {[%clk 0:00:47.8]}
30... Bd5 {[%clk 0:00:04.8]} 31. Rd4 {[%clk 0:00:48.2]} 31... Bc6 {[%clk
0:00:05.2]} 32. Rxd6+ {[%clk 0:00:48]} 32... Kf5 {[%clk 0:00:06.1]} 33. Rxc6
{[%clk 0:00:48.2]} 33... bxc6 {[%clk 0:00:05.5]} 34. Rd1 {[%clk 0:00:48.8]}
34... Bxf4 {[%clk 0:00:05.7]} 35. Rd7 {[%clk 0:00:49.2]} 35... Be5 {[%clk
0:00:06.6]} 36. c3 {[%clk 0:00:48.7]} 36... h5 {[%clk 0:00:06.1]} 37. Ra7 {[%clk
0:00:49]} 37... Bf4 {[%clk 0:00:04.9]} 38. Rxa6 {[%clk 0:00:49.2]} 38... Bc1
{[%clk 0:00:03.7]} 39. Rxc6 {[%clk 0:00:49.8]} 39... Bxb2 {[%clk 0:00:03.8]} 40.
a4 {[%clk 0:00:50.4]} 1-0

[Event "Early-Titled-Tuesday-Blitz-January-16-2024"]
[Site "Chess.com"]
[Date "2024.01.16"]
[Round "4"]
[White "ErikRonka"]
[Black "dzilleruelo"]
[Result "0-1"]
[WhiteElo "2526"]
[BlackElo "2375"]
[TimeControl "180+1"]
[EndTime "8:41:03 PST"]
[Termination "dzilleruelo won on time"]

1. e4 {[%clk 0:02:56.4]} 1... c6 {[%clk 0:03:00.1]} 2. Nf3 {[%clk 0:02:54]} 2...
d5 {[%clk 0:03:01]} 3. d3 {[%clk 0:02:54.6]} 3... Nf6 {[%clk 0:03:00.4]} 4. e5
{[%clk 0:02:53.4]} 4... Nfd7 {[%clk 0:02:59.9]} 5. d4 {[%clk 0:02:49.4]} 5... e6
{[%clk 0:02:59.5]} 6. c4 {[%clk 0:02:41.2]} 6... b6 {[%clk 0:02:56.3]} 7. Nc3
{[%clk 0:02:40.7]} 7... Ba6 {[%clk 0:02:53.6]} 8. cxd5 {[%clk 0:01:47.6]} 8...
Bxf1 {[%clk 0:02:51.5]} 9. dxe6 {[%clk 0:01:34.4]} 9... Bxg2 {[%clk 0:02:51.1]}
10. exf7+ {[%clk 0:01:33.6]} 10... Kxf7 {[%clk 0:02:51.1]} 11. Ng5+ {[%clk
0:01:33.9]} 11... Ke8 {[%clk 0:02:47.7]} 12. Rg1 {[%clk 0:01:16.1]} 12... Bd5
{[%clk 0:02:47.8]} 13. Nxd5 {[%clk 0:01:03.3]} 13... cxd5 {[%clk 0:02:48.7]} 14.
Qf3 {[%clk 0:00:43]} 14... Bb4+ {[%clk 0:02:41.7]} 15. Kd1 {[%clk 0:00:40.6]}
15... Qe7 {[%clk 0:02:41.7]} 16. Qxd5 {[%clk 0:00:36.3]} 16... h6 {[%clk
0:02:12.4]} 17. Ne6 {[%clk 0:00:30.9]} 17... Qf7 {[%clk 0:01:43.9]} 18. Be3
{[%clk 0:00:14.3]} 18... Qh5+ {[%clk 0:00:51.7]} 19. f3 {[%clk 0:00:14.2]} 19...
Qxh2 {[%clk 0:00:51.8]} 20. Nxg7+ {[%clk 0:00:12.7]} 20... Kd8 {[%clk
0:00:51.8]} 21. Ne6+ {[%clk 0:00:12.8]} 21... Ke8 {[%clk 0:00:51.9]} 22. Nc7+
{[%clk 0:00:09]} 22... Kd8 {[%clk 0:00:51.9]} 23. Nxa8 {[%clk 0:00:06.6]} 23...
Qxb2 {[%clk 0:00:45.9]} 24. Rc1 {[%clk 0:00:06.3]} 24... Qa3 {[%clk 0:00:16.8]}
25. Rg8+ {[%clk 0:00:06.5]} 25... Rxg8 {[%clk 0:00:15.8]} 26. Qxg8+ {[%clk
0:00:07.4]} 26... Ke7 {[%clk 0:00:16.6]} 27. Qg7+ {[%clk 0:00:07.4]} 27... Ke8
{[%clk 0:00:16.2]} 28. Bxh6 {[%clk 0:00:07.6]} 28... Qd3+ {[%clk 0:00:15.4]} 0-1

[Event "Early-Titled-Tuesday-Blitz-January-16-2024"]
[Site "Chess.com"]
[Date "2024.01.16"]
[Round "4"]
[White "ljuks68"]
[Black "VeraVujovic"]
[Result "0-1"]
[WhiteElo "2458"]
[BlackElo "2235"]
[TimeControl "180+1"]
[EndTime "8:41:03 PST"]
[Termination "VeraVujovic won by resignation"]

1. e4 {[%clk 0:02:58.1]} 1... e5 {[%clk 0:02:59.5]} 2. Nf3 {[%clk 0:02:58.2]}
2... Nc6 {[%clk 0:02:59.5]} 3. Bb5 {[%clk 0:02:58.8]} 3... Nf6 {[%clk
0:02:57.2]} 4. Qe2 {[%clk 0:02:58.6]} 4... a6 {[%clk 0:02:38.9]} 5. Ba4 {[%clk
0:02:58.3]} 5... b5 {[%clk 0:02:36]} 6. Bb3 {[%clk 0:02:58.4]} 6... Bc5 {[%clk
0:02:36.6]} 7. c3 {[%clk 0:02:58.6]} 7... d6 {[%clk 0:02:35.3]} 8. d3 {[%clk
0:02:59]} 8... O-O {[%clk 0:02:34.6]} 9. Bg5 {[%clk 0:02:59]} 9... h6 {[%clk
0:02:34.2]} 10. Bh4 {[%clk 0:02:59.1]} 10... Be6 {[%clk 0:02:32.4]} 11. Bd5
{[%clk 0:02:57.3]} 11... Bxd5 {[%clk 0:02:14.5]} 12. exd5 {[%clk 0:02:57.1]}
12... Nb8 {[%clk 0:02:14.7]} 13. Nbd2 {[%clk 0:02:56]} 13... Nbd7 {[%clk
0:02:14.3]} 14. Ne4 {[%clk 0:02:55.8]} 14... Bb6 {[%clk 0:02:12.3]} 15. O-O-O
{[%clk 0:02:23.5]} 15... a5 {[%clk 0:02:04.9]} 16. g4 {[%clk 0:02:11.6]} 16...
g5 {[%clk 0:01:37.7]} 17. Bg3 {[%clk 0:02:05.5]} 17... Nxg4 {[%clk 0:01:26.8]}
18. h4 {[%clk 0:02:06]} 18... f5 {[%clk 0:01:26.6]} 19. hxg5 {[%clk 0:02:06]}
19... fxe4 {[%clk 0:01:25.6]} 20. Qxe4 {[%clk 0:02:06]} 20... Rxf3 {[%clk
0:01:13.5]} 21. Qxf3 {[%clk 0:02:02.8]} 21... Qxg5+ {[%clk 0:01:13.2]} 22. Kb1
{[%clk 0:02:00.1]} 22... Rf8 {[%clk 0:01:11.4]} 23. Qe2 {[%clk 0:01:28.4]} 23...
Bxf2 {[%clk 0:01:09.1]} 24. Bxf2 {[%clk 0:01:25.2]} 24... Rxf2 {[%clk 0:01:10]}
25. Qe4 {[%clk 0:01:22.1]} 25... Ndf6 {[%clk 0:01:06.7]} 26. Qe1 {[%clk
0:01:19.1]} 26... Nxd5 {[%clk 0:00:53.8]} 27. Rg1 {[%clk 0:01:13.8]} 27... Nde3
{[%clk 0:00:51.6]} 28. Rd2 {[%clk 0:01:12]} 28... Rxd2 {[%clk 0:00:41.4]} 29.
Qxd2 {[%clk 0:01:12]} 29... Kh7 {[%clk 0:00:40.2]} 30. a3 {[%clk 0:00:56.2]}
30... Qf5 {[%clk 0:00:37.9]} 31. Ka1 {[%clk 0:00:50]} 31... e4 {[%clk
0:00:35.3]} 32. dxe4 {[%clk 0:00:30]} 32... Qxe4 {[%clk 0:00:33.8]} 33. Rg3
{[%clk 0:00:16.9]} 33... Nf1 {[%clk 0:00:22.3]} 34. Rxg4 {[%clk 0:00:12.2]}
34... Nxd2 {[%clk 0:00:21]} 0-1

[Event "Early-Titled-Tuesday-Blitz-January-16-2024"]
[Site "Chess.com"]
[Date "2024.01.16"]
[Round "4"]
[White "Superfelix"]
[Black "rikchessmx"]
[Result "0-1"]
[WhiteElo "2506"]
[BlackElo "2338"]
[TimeControl "180+1"]
[EndTime "8:41:05 PST"]
[Termination "rikchessmx won by resignation"]

1. e4 {[%clk 0:03:00.9]} 1... e5 {[%clk 0:02:59.5]} 2. Nf3 {[%clk 0:03:00.4]}
2... Nc6 {[%clk 0:03:00.4]} 3. d4 {[%clk 0:03:00]} 3... exd4 {[%clk 0:03:00.1]}
4. Nxd4 {[%clk 0:02:58]} 4... Nf6 {[%clk 0:02:58.8]} 5. Nc3 {[%clk 0:02:31.3]}
5... Bb4 {[%clk 0:02:55.5]} 6. Nxc6 {[%clk 0:02:31]} 6... bxc6 {[%clk
0:02:54.8]} 7. Bd3 {[%clk 0:02:31.6]} 7... d5 {[%clk 0:02:51.9]} 8. exd5 {[%clk
0:02:30.8]} 8... cxd5 {[%clk 0:02:51.8]} 9. O-O {[%clk 0:02:30.9]} 9... O-O
{[%clk 0:02:50.6]} 10. h3 {[%clk 0:02:31.5]} 10... h6 {[%clk 0:02:47.6]} 11. Qf3
{[%clk 0:02:32]} 11... Be6 {[%clk 0:02:44.9]} 12. Bf4 {[%clk 0:02:31.7]} 12...
c5 {[%clk 0:02:44.5]} 13. a3 {[%clk 0:02:26.5]} 13... Bxc3 {[%clk 0:02:42.5]}
14. bxc3 {[%clk 0:02:26.3]} 14... c4 {[%clk 0:02:43]} 15. Be2 {[%clk 0:02:26.4]}
15... Ne4 {[%clk 0:02:42.9]} 16. Qe3 {[%clk 0:02:24.1]} 16... Qf6 {[%clk
0:02:39.5]} 17. f3 {[%clk 0:02:21.7]} 17... Nxc3 {[%clk 0:02:35]} 18. Be5 {[%clk
0:02:21.6]} 18... Nxe2+ {[%clk 0:02:34.9]} 19. Qxe2 {[%clk 0:02:21.7]} 19... Qf5
{[%clk 0:02:32.6]} 20. Bd4 {[%clk 0:02:19.6]} 20... Rfe8 {[%clk 0:02:32.1]} 21.
Qd2 {[%clk 0:02:18.7]} 21... a5 {[%clk 0:02:29.1]} 22. c3 {[%clk 0:02:17.5]}
22... Qg5 {[%clk 0:02:26.4]} 23. f4 {[%clk 0:02:14.8]} 23... Qg6 {[%clk
0:02:21.7]} 24. g4 {[%clk 0:02:05.6]} 24... Bf5 {[%clk 0:02:14.9]} 25. Rfe1
{[%clk 0:02:00.3]} 25... Be4 {[%clk 0:02:03.8]} 26. f5 {[%clk 0:01:58.7]} 26...
Bxf5 {[%clk 0:01:59.7]} 27. Ra2 {[%clk 0:01:56.6]} 27... Be4 {[%clk 0:01:48.5]}
28. Rb2 {[%clk 0:01:48.2]} 28... f5 {[%clk 0:01:44.5]} 29. Qf4 {[%clk
0:01:47.8]} 29... fxg4 {[%clk 0:01:42.3]} 30. Qxg4 {[%clk 0:01:35.5]} 30...
Qxg4+ {[%clk 0:01:40.5]} 31. hxg4 {[%clk 0:01:36.4]} 31... Rab8 {[%clk 0:01:37]}
32. Ree2 {[%clk 0:01:36.2]} 32... Kf7 {[%clk 0:01:29.5]} 33. Kh2 {[%clk
0:01:31.2]} 33... a4 {[%clk 0:01:28.5]} 34. Rb4 {[%clk 0:01:28.5]} 34... Kg6
{[%clk 0:01:20.9]} 35. Kg3 {[%clk 0:01:28.1]} 35... Rf8 {[%clk 0:01:11.3]} 36.
Rf2 {[%clk 0:01:21.2]} 36... Rxf2 {[%clk 0:01:10.4]} 37. Kxf2 {[%clk 0:01:21.4]}
37... Rxb4 {[%clk 0:01:04.8]} 38. cxb4 {[%clk 0:01:19.6]} 38... c3 {[%clk
0:00:54.7]} 39. Bxc3 {[%clk 0:01:12.2]} 39... d4 {[%clk 0:00:53.8]} 40. Bxd4
{[%clk 0:01:11.8]} 40... Bc6 {[%clk 0:00:50.7]} 41. Kg3 {[%clk 0:01:11]} 41...
Bd7 {[%clk 0:00:48.3]} 42. Kf4 {[%clk 0:01:10.9]} 42... Kf7 {[%clk 0:00:47.4]}
43. g5 {[%clk 0:01:06.9]} 43... h5 {[%clk 0:00:45.8]} 44. Bf2 {[%clk 0:01:01.9]}
44... Ke6 {[%clk 0:00:42.3]} 45. Ke4 {[%clk 0:01:02.1]} 45... Bc6+ {[%clk
0:00:39.5]} 46. Kd4 {[%clk 0:01:02.3]} 46... Kf5 {[%clk 0:00:39.2]} 47. Kc5
{[%clk 0:01:02.5]} 47... Be4 {[%clk 0:00:37.8]} 48. Kb5 {[%clk 0:01:00.1]} 48...
Kxg5 {[%clk 0:00:34.2]} 49. Kxa4 {[%clk 0:01:00.1]} 49... Kg4 {[%clk 0:00:33.6]}
50. b5 {[%clk 0:00:59.5]} 50... g5 {[%clk 0:00:33]} 51. Kb4 {[%clk 0:00:54.9]}
51... h4 {[%clk 0:00:33.2]} 52. a4 {[%clk 0:00:54.6]} 52... Kf3 {[%clk
0:00:32.7]} 53. Bd4 {[%clk 0:00:49.4]} 53... h3 {[%clk 0:00:31.2]} 54. Be5
{[%clk 0:00:49.4]} 54... g4 {[%clk 0:00:31.5]} 55. a5 {[%clk 0:00:49.7]} 55...
g3 {[%clk 0:00:31.4]} 56. a6 {[%clk 0:00:49.9]} 56... h2 {[%clk 0:00:31.4]} 57.
b6 {[%clk 0:00:49.4]} 57... h1=Q {[%clk 0:00:31]} 0-1

[Event "Early-Titled-Tuesday-Blitz-January-16-2024"]
[Site "Chess.com"]
[Date "2024.01.16"]
[Round "4"]
[White "Bekkedahl"]
[Black "anasta10"]
[Result "0-1"]
[WhiteElo "2292"]
[BlackElo "2507"]
[TimeControl "180+1"]
[EndTime "8:41:05 PST"]
[Termination "anasta10 won by resignation"]

1. e4 {[%clk 0:03:00.9]} 1... g6 {[%clk 0:03:00.1]} 2. d4 {[%clk 0:03:00.7]}
2... Bg7 {[%clk 0:03:00.7]} 3. Nf3 {[%clk 0:03:01.1]} 3... d6 {[%clk 0:03:00.9]}
4. Bc4 {[%clk 0:02:58]} 4... c6 {[%clk 0:02:58]} 5. a4 {[%clk 0:02:57.9]} 5...
Nf6 {[%clk 0:02:57]} 6. Nc3 {[%clk 0:02:57.4]} 6... O-O {[%clk 0:02:56.8]} 7.
O-O {[%clk 0:02:54.2]} 7... Nxe4 {[%clk 0:02:55.7]} 8. Nxe4 {[%clk 0:02:55.1]}
8... d5 {[%clk 0:02:55.7]} 9. Bd3 {[%clk 0:02:55.3]} 9... dxe4 {[%clk
0:02:55.9]} 10. Bxe4 {[%clk 0:02:56.2]} 10... Nd7 {[%clk 0:02:56.3]} 11. c3
{[%clk 0:02:52.5]} 11... Nf6 {[%clk 0:02:56]} 12. Bc2 {[%clk 0:02:52.2]} 12...
Qc7 {[%clk 0:02:46.2]} 13. Bg5 {[%clk 0:02:50.9]} 13... c5 {[%clk 0:02:45.2]}
14. dxc5 {[%clk 0:02:49.1]} 14... Qxc5 {[%clk 0:02:45.1]} 15. Qe2 {[%clk
0:02:45.5]} 15... Bg4 {[%clk 0:02:41.6]} 16. Be3 {[%clk 0:02:44.1]} 16... Qh5
{[%clk 0:02:40.7]} 17. h3 {[%clk 0:02:41.2]} 17... Bxf3 {[%clk 0:02:38.6]} 18.
Qxf3 {[%clk 0:02:42.1]} 18... Qxf3 {[%clk 0:02:38.8]} 19. gxf3 {[%clk 0:02:43]}
19... a6 {[%clk 0:02:20]} 20. Rfd1 {[%clk 0:02:43.3]} 20... e6 {[%clk 0:02:11]}
21. Rd6 {[%clk 0:02:36.8]} 21... Nd5 {[%clk 0:02:04.3]} 22. Bg5 {[%clk
0:02:36.3]} 22... h6 {[%clk 0:02:00.3]} 23. Bh4 {[%clk 0:02:35.1]} 23... Be5
{[%clk 0:01:33.6]} 24. Rd7 {[%clk 0:02:34.2]} 24... Rab8 {[%clk 0:01:30.8]} 25.
Bg3 {[%clk 0:02:24.4]} 25... Bxg3 {[%clk 0:01:02.6]} 26. fxg3 {[%clk 0:02:25.3]}
26... Rfc8 {[%clk 0:01:02.2]} 27. Be4 {[%clk 0:02:08.5]} 27... Nf6 {[%clk
0:00:52.5]} 28. Rxb7 {[%clk 0:01:58.9]} 28... Nxe4 {[%clk 0:00:52.3]} 29. Rxb8
{[%clk 0:01:58.1]} 29... Rxb8 {[%clk 0:00:53.2]} 30. fxe4 {[%clk 0:01:57.8]}
30... Rxb2 {[%clk 0:00:54.1]} 31. Rc1 {[%clk 0:01:52.7]} 31... Kf8 {[%clk
0:00:53.8]} 32. c4 {[%clk 0:01:53.2]} 32... Ke7 {[%clk 0:00:54]} 33. c5 {[%clk
0:01:53.7]} 33... Kd7 {[%clk 0:00:54.2]} 34. Rc4 {[%clk 0:01:52]} 34... Kc6
{[%clk 0:00:53.3]} 35. g4 {[%clk 0:01:50.7]} 35... a5 {[%clk 0:00:49.6]} 36. Kh1
{[%clk 0:01:46.3]} 36... Rb4 {[%clk 0:00:42.6]} 37. Rc2 {[%clk 0:01:41.9]} 37...
Rxe4 {[%clk 0:00:41]} 38. Rf2 {[%clk 0:01:42.6]} 38... f5 {[%clk 0:00:40.8]} 39.
gxf5 {[%clk 0:01:42.8]} 39... gxf5 {[%clk 0:00:41.7]} 40. Rc2 {[%clk 0:01:37.2]}
40... Rxa4 {[%clk 0:00:41.4]} 41. Kg2 {[%clk 0:01:37.4]} 41... e5 {[%clk
0:00:35.8]} 42. Kf3 {[%clk 0:01:37.6]} 42... Ra3+ {[%clk 0:00:35.7]} 43. Kg2
{[%clk 0:01:37.4]} 43... a4 {[%clk 0:00:36.4]} 44. Rc4 {[%clk 0:01:35.6]} 44...
e4 {[%clk 0:00:32.5]} 45. Kf2 {[%clk 0:01:34.2]} 45... Ra2+ {[%clk 0:00:26.6]}
46. Ke3 {[%clk 0:01:33.6]} 46... a3 {[%clk 0:00:27.3]} 47. Ra4 {[%clk 0:01:27]}
47... Kxc5 {[%clk 0:00:25.4]} 48. Ra5+ {[%clk 0:01:27.6]} 48... Kb4 {[%clk
0:00:25.6]} 49. Rxf5 {[%clk 0:01:26.9]} 49... Rh2 {[%clk 0:00:23.3]} 50. Rf8
{[%clk 0:01:17.5]} 50... Rxh3+ {[%clk 0:00:20.6]} 51. Kd4 {[%clk 0:01:17.4]}
51... Rd3+ {[%clk 0:00:17.7]} 52. Kxe4 {[%clk 0:01:17]} 52... Rd6 {[%clk
0:00:17.5]} 53. Rf2 {[%clk 0:01:16.1]} 53... Ra6 {[%clk 0:00:15.8]} 54. Ra2
{[%clk 0:01:14.3]} 54... Kb3 {[%clk 0:00:16.1]} 55. Ra1 {[%clk 0:01:15.1]} 55...
a2 {[%clk 0:00:16.7]} 56. Kd3 {[%clk 0:01:14.6]} 56... Kb2 {[%clk 0:00:17.3]}
57. Rh1 {[%clk 0:01:13.3]} 57... a1=Q {[%clk 0:00:17.4]} 58. Rh2+ {[%clk
0:01:10.7]} 58... Kb3 {[%clk 0:00:17.8]} 59. Rh3 {[%clk 0:01:08.2]} 59... Qc3+
{[%clk 0:00:17.4]} 0-1

[Event "Early-Titled-Tuesday-Blitz-January-16-2024"]
[Site "Chess.com"]
[Date "2024.01.16"]
[Round "4"]
[White "GMRAVEN_ON_YOUTUBE"]
[Black "Zhigalko_Sergei"]
[Result "0-1"]
[WhiteElo "2821"]
[BlackElo "2959"]
[TimeControl "180+1"]
[EndTime "8:41:07 PST"]
[Termination "Zhigalko_Sergei won by checkmate"]

1. f4 {[%clk 0:03:00.9]} 1... d5 {[%clk 0:02:57.2]} 2. Nf3 {[%clk 0:03:01.1]}
2... Nf6 {[%clk 0:02:57.7]} 3. e3 {[%clk 0:03:01.7]} 3... g6 {[%clk 0:02:50.2]}
4. b3 {[%clk 0:03:02]} 4... Bg7 {[%clk 0:02:49.9]} 5. Bb2 {[%clk 0:03:02.6]}
5... O-O {[%clk 0:02:50]} 6. Be2 {[%clk 0:03:03.3]} 6... c5 {[%clk 0:02:49.8]}
7. O-O {[%clk 0:03:03.9]} 7... d4 {[%clk 0:02:37.8]} 8. exd4 {[%clk 0:02:57.3]}
8... Nd5 {[%clk 0:02:35]} 9. Ne5 {[%clk 0:02:37.3]} 9... cxd4 {[%clk 0:02:30.2]}
10. Bxd4 {[%clk 0:02:36.9]} 10... Nd7 {[%clk 0:02:24.4]} 11. Bf3 {[%clk
0:01:46.6]} 11... Nxf4 {[%clk 0:02:18.6]} 12. Qe1 {[%clk 0:01:47]} 12... Qc7
{[%clk 0:01:56.4]} 13. Nc3 {[%clk 0:01:26.4]} 13... Bxe5 {[%clk 0:01:51.9]} 14.
Bxe5 {[%clk 0:01:21.5]} 14... Qxe5 {[%clk 0:01:43]} 15. Qg3 {[%clk 0:01:03]}
15... Ne6 {[%clk 0:01:37.5]} 16. Nd5 {[%clk 0:00:59.9]} 16... Re8 {[%clk
0:01:16.8]} 17. Rae1 {[%clk 0:00:53.8]} 17... Qxg3 {[%clk 0:01:14.8]} 18. hxg3
{[%clk 0:00:54.2]} 18... Nf6 {[%clk 0:01:09.3]} 19. Nxf6+ {[%clk 0:00:49.7]}
19... exf6 {[%clk 0:01:09.2]} 20. d4 {[%clk 0:00:50.6]} 20... Rd8 {[%clk
0:00:58.2]} 21. d5 {[%clk 0:00:48.3]} 21... Nd4 {[%clk 0:00:55.5]} 22. c4 {[%clk
0:00:48]} 22... Nxf3+ {[%clk 0:00:48.3]} 23. Rxf3 {[%clk 0:00:48.9]} 23... f5
{[%clk 0:00:45.2]} 24. Re7 {[%clk 0:00:48.4]} 24... Bd7 {[%clk 0:00:40.8]} 25.
Kf2 {[%clk 0:00:45]} 25... Kf8 {[%clk 0:00:40.7]} 26. Re1 {[%clk 0:00:43.6]}
26... Re8 {[%clk 0:00:40]} 27. Rh1 {[%clk 0:00:35.5]} 27... h5 {[%clk
0:00:39.7]} 28. a4 {[%clk 0:00:33.8]} 28... a5 {[%clk 0:00:39]} 29. Rd1 {[%clk
0:00:33.1]} 29... Rac8 {[%clk 0:00:37.5]} 30. Rd2 {[%clk 0:00:32.3]} 30... b6
{[%clk 0:00:37.2]} 31. Re3 {[%clk 0:00:30]} 31... Rxe3 {[%clk 0:00:33.3]} 32.
Kxe3 {[%clk 0:00:30.9]} 32... Re8+ {[%clk 0:00:33.4]} 33. Kd3 {[%clk 0:00:27.8]}
33... Ke7 {[%clk 0:00:33.3]} 34. b4 {[%clk 0:00:18]} 34... axb4 {[%clk
0:00:30.3]} 35. a5 {[%clk 0:00:18.9]} 35... bxa5 {[%clk 0:00:29.7]} 36. c5
{[%clk 0:00:19.3]} 36... Bb5+ {[%clk 0:00:25.4]} 37. Kd4 {[%clk 0:00:19.5]}
37... Kd7 {[%clk 0:00:25.9]} 38. d6 {[%clk 0:00:14.4]} 38... Re4+ {[%clk
0:00:25.1]} 39. Kd5 {[%clk 0:00:15.1]} 39... Bc6# {[%clk 0:00:25.4]} 0-1